[Event "2026 European Womens Championship"]
[Site "Batumi, GE"]
[Date "2026.05.29"]
[Round "5"]
[White "Vega Gutierrez, Sabrina"]
[Black "Safarli, Josefine"]
[Result "1-0"]
[Board "59"]
[TimeControl "5400+30"]
[WhiteFideId "2219026"]
[BlackFideId "12900460"]
[WhiteElo "2375"]
[BlackElo "2253"]
[WhiteTitle "IM"]
[BlackTitle "WGM"]
[WhiteClock "0:02:53"]
[BlackClock "0:01:47"]
[Variant "Standard"]

1. e4 {[%clk 1:30:57]}  e5 {[%clk 1:30:56]} 2. Nf3 {[%clk 1:31:21]}  Nc6 {[%clk 1:31:22]} 3. Bb5 {[%clk 1:31:40]}  a6 {[%clk 1:31:46]}
4. Ba4 {[%clk 1:32:03]}  Nf6 {[%clk 1:32:08]} 5. O-O {[%clk 1:32:24]}  Be7 {[%clk 1:31:44]} 6. Bxc6 {[%clk 1:32:34]}  dxc6 {[%clk 1:32:09]}
7. Nc3 {[%clk 1:32:55]}  Nd7 {[%clk 1:31:53]} 8. d4 {[%clk 1:33:15]}  exd4 {[%clk 1:32:04]} 9. Qxd4 {[%clk 1:33:21]}  O-O {[%clk 1:32:15]}
10. Bf4 {[%clk 1:33:43]}  Nc5 {[%clk 1:31:45]} 11. Qe3 {[%clk 1:33:45]}  Ne6 {[%clk 1:31:03]} 12. Rad1 {[%clk 1:33:55]}  Qe8 {[%clk 1:26:54]}
13. Bg3 {[%clk 1:34:12]}  Bc5 {[%clk 1:25:53]} 14. Qc1 {[%clk 1:34:31]}  f6 {[%clk 1:20:38]} 15. Ne1 {[%clk 1:34:44]}  Qf7 {[%clk 1:15:44]}
16. Nd3 {[%clk 1:34:55]}  Ba7 {[%clk 1:16:10]} 17. Kh1 {[%clk 1:35:06]}  Nc5 {[%clk 1:09:34]} 18. b3 {[%clk 1:33:49]}  Nxd3 {[%clk 1:05:48]}
19. Rxd3 {[%clk 1:34:01]}  Be6 {[%clk 1:05:12]} 20. f3 {[%clk 1:32:32]}  Rad8 {[%clk 0:59:05]} 21. Qd2 {[%clk 1:27:59]}  Qe7 {[%clk 0:53:02]}
22. Rd1 {[%clk 1:16:21]}  Rxd3 {[%clk 0:50:57]} 23. Qxd3 {[%clk 1:16:43]}  b5 {[%clk 0:46:56]} 24. Qd2 {[%clk 1:10:18]}  h6 {[%clk 0:39:53]}
25. Ne2 {[%clk 1:01:41]}  Bb6 {[%clk 0:33:58]} 26. Nf4 {[%clk 1:01:16]}  Bf7 {[%clk 0:33:27]} 27. Bf2 {[%clk 1:01:31]}  Bxf2 {[%clk 0:32:19]}
28. Qxf2 {[%clk 1:01:53]}  Rd8 {[%clk 0:32:47]} 29. Rxd8+ {[%clk 1:01:16]}  Qxd8 {[%clk 0:33:14]} 30. Nd3 {[%clk 1:01:31]}  Qd6 {[%clk 0:30:07]}
31. Qc5 {[%clk 0:54:13]}  a5 {[%clk 0:29:27]} 32. g3 {[%clk 0:36:29]}  Be6 {[%clk 0:25:57]} 33. Kg2 {[%clk 0:36:23]}  Kf8 {[%clk 0:17:33]}
34. Kf2 {[%clk 0:34:00]}  Ke7 {[%clk 0:14:57]} 35. Ke3 {[%clk 0:29:34]}  Bh3 {[%clk 0:11:51]} 36. Qd4 {[%clk 0:21:06]}  Bd7 {[%clk 0:06:19]}
37. Nc5 {[%clk 0:17:07]}  Bc8 {[%clk 0:05:54]} 38. a4 {[%clk 0:16:19]}  bxa4 {[%clk 0:02:54]} 39. bxa4 {[%clk 0:09:38]}  h5 {[%clk 0:02:16]}
40. Nb3 {[%clk 0:07:58]}  Bd7 {[%clk 0:01:59]} 41. Qc5 {[%clk 0:00:35]}  h4 {[%clk 0:24:43]} 42. gxh4 {[%clk 0:28:30]}  Kf7 {[%clk 0:23:26]}
43. Qxd6 {[%clk 0:12:23]}  cxd6 {[%clk 0:23:52]} 44. Nxa5 {[%clk 0:12:45]}  c5 {[%clk 0:24:13]} 45. Nc4 {[%clk 0:13:07]}  Bxa4 {[%clk 0:24:30]}
46. Nxd6+ {[%clk 0:13:07]}  Ke6 {[%clk 0:21:30]} 47. Nb7 {[%clk 0:13:30]}  Bxc2 {[%clk 0:19:51]} 48. Nxc5+ {[%clk 0:13:20]}  Kd6 {[%clk 0:20:08]}
49. Nd3 {[%clk 0:11:38]}  Bb1 {[%clk 0:16:39]} 50. Kd4 {[%clk 0:06:13]}  Ke6 {[%clk 0:11:39]} 51. Nb4 {[%clk 0:02:01]}  Kd6 {[%clk 0:11:55]}
52. Nd5 {[%clk 0:00:41]}  Ba2 {[%clk 0:11:22]} 53. Ne3 {[%clk 0:00:55]}  Ke7 {[%clk 0:11:18]} 54. Nf5+ {[%clk 0:01:22]}  Kf7 {[%clk 0:11:42]}
55. h5 {[%clk 0:01:14]}  Bb3 {[%clk 0:10:33]} 56. Ke3 {[%clk 0:01:09]}  Kg8 {[%clk 0:10:14]} 57. Kf4 {[%clk 0:00:40]}  Kh7 {[%clk 0:10:24]}
58. Ng3 {[%clk 0:00:48]}  Be6 {[%clk 0:10:25]} 59. Nf5 {[%clk 0:00:43]}  Bb3 {[%clk 0:10:49]} 60. Kg4 {[%clk 0:00:44]}  Be6 {[%clk 0:10:48]}
61. f4 {[%clk 0:00:39]}  Bd7 {[%clk 0:09:09]} 62. Kf3 {[%clk 0:00:37]}  Be8 {[%clk 0:09:28]} 63. Ng3 {[%clk 0:00:53]}  Kg8 {[%clk 0:06:38]}
64. Ke3 {[%clk 0:00:47]}  Kf7 {[%clk 0:06:57]} 65. Kd4 {[%clk 0:00:38]}  Ba4 {[%clk 0:06:56]} 66. e5 {[%clk 0:00:32]}  Bb3 {[%clk 0:06:25]}
67. f5 {[%clk 0:00:35]}  fxe5+ {[%clk 0:06:45]} 68. Kxe5 {[%clk 0:01:04]}  Bd1 {[%clk 0:05:45]} 69. h4 {[%clk 0:00:45]}  Ke7 {[%clk 0:04:58]}
70. Kf4 {[%clk 0:01:08]}  Bc2 {[%clk 0:05:03]} 71. Kg5 {[%clk 0:01:29]}  Kf7 {[%clk 0:05:27]} 72. Nf1 {[%clk 0:00:45]}  Ba4 {[%clk 0:05:02]}
73. Ne3 {[%clk 0:01:12]}  Kg8 {[%clk 0:03:58]} 74. h6 {[%clk 0:01:07]}  gxh6+ {[%clk 0:04:21]} 75. Kxh6 {[%clk 0:01:20]}  Be8 {[%clk 0:03:49]}
76. Ng4 {[%clk 0:01:02]}  Kh8 {[%clk 0:03:55]} 77. h5 {[%clk 0:01:09]}  Bf7 {[%clk 0:03:31]} 78. Kg5 {[%clk 0:01:23]}  Kg7 {[%clk 0:03:54]}
79. Ne5 {[%clk 0:00:51]}  Ba2 {[%clk 0:04:19]} 80. Nd3 {[%clk 0:01:16]}  Bc4 {[%clk 0:03:43]} 81. Ne5 {[%clk 0:01:45]}  Ba2 {[%clk 0:04:09]}
82. Nc6 {[%clk 0:01:59]}  Bd5 {[%clk 0:02:35]} 83. Nd8 {[%clk 0:02:21]}  Be4 {[%clk 0:02:00]} 84. Ne6+ {[%clk 0:02:35]}  Kg8 {[%clk 0:02:09]}
85. Kg6 {[%clk 0:02:38]}  Kh8 {[%clk 0:01:39]} 86. Ng5 {[%clk 0:02:32]}  Bc2 {[%clk 0:01:47]} 87. h6 {[%clk 0:02:53]} 1-0

[Event "2026 European Womens Championship"]
[Site "Batumi, GE"]
[Date "2026.05.29"]
[Round "5"]
[White "Zherebtsova, Alexandra"]
[Black "Atalik, Ekaterina"]
[Result "1-0"]
[Board "60"]
[TimeControl "5400+30"]
[WhiteFideId "24129518"]
[BlackFideId "4130189"]
[WhiteElo "2242"]
[BlackElo "2372"]
[WhiteTitle "FM"]
[BlackTitle "IM"]
[WhiteClock "0:01:27"]
[BlackClock "0:07:11"]
[Variant "Standard"]

1. d4 {[%clk 1:29:25]}  Nf6 {[%clk 1:30:21]} 2. c4 {[%clk 1:29:30]}  e6 {[%clk 1:30:40]} 3. Nc3 {[%clk 1:29:54]}  d5 {[%clk 1:30:58]}
4. cxd5 {[%clk 1:28:38]}  exd5 {[%clk 1:26:21]} 5. Bg5 {[%clk 1:29:02]}  Be7 {[%clk 1:26:22]} 6. e3 {[%clk 1:29:03]}  h6 {[%clk 1:25:59]}
7. Bh4 {[%clk 1:27:38]}  c6 {[%clk 1:24:57]} 8. Bd3 {[%clk 1:27:16]}  Nbd7 {[%clk 1:24:46]} 9. h3 {[%clk 1:20:22]}  O-O {[%clk 1:18:59]}
10. Bg3 {[%clk 1:20:01]}  Ne8 {[%clk 1:12:15]} 11. Rc1 {[%clk 1:07:43]}  Bd6 {[%clk 1:09:11]} 12. Nge2 {[%clk 1:06:31]}  Bxg3 {[%clk 1:08:31]}
13. Nxg3 {[%clk 1:06:37]}  Nd6 {[%clk 1:08:27]} 14. O-O {[%clk 1:04:40]}  Re8 {[%clk 1:01:41]} 15. Re1 {[%clk 0:53:50]}  Nf8 {[%clk 0:53:50]}
16. Bb1 {[%clk 0:48:35]}  Bd7 {[%clk 0:48:35]} 17. Na4 {[%clk 0:43:32]}  Qg5 {[%clk 0:44:45]} 18. Nc5 {[%clk 0:39:50]}  Rad8 {[%clk 0:42:57]}
19. Qh5 {[%clk 0:28:26]}  Bc8 {[%clk 0:39:24]} 20. a4 {[%clk 0:25:23]}  Nd7 {[%clk 0:29:39]} 21. Nd3 {[%clk 0:21:22]}  Qxh5 {[%clk 0:24:49]}
22. Nxh5 {[%clk 0:21:48]}  Nb8 {[%clk 0:24:43]} 23. g4 {[%clk 0:20:23]}  a5 {[%clk 0:23:06]} 24. Nhf4 {[%clk 0:15:02]}  b6 {[%clk 0:20:11]}
25. Ne5 {[%clk 0:12:52]}  Bb7 {[%clk 0:19:29]} 26. Ba2 {[%clk 0:12:28]}  Na6 {[%clk 0:16:06]} 27. Bb3 {[%clk 0:09:27]}  Nb4 {[%clk 0:15:49]}
28. Nfd3 {[%clk 0:08:34]}  Nxd3 {[%clk 0:14:39]} 29. Nxd3 {[%clk 0:08:58]}  g5 {[%clk 0:10:54]} 30. f3 {[%clk 0:03:06]}  Kg7 {[%clk 0:10:42]}
31. Kf2 {[%clk 0:02:30]}  f6 {[%clk 0:10:58]} 32. Rh1 {[%clk 0:02:12]}  Rc8 {[%clk 0:08:59]} 33. Rc3 {[%clk 0:01:16]}  Rf8 {[%clk 0:08:11]}
34. Bc2 {[%clk 0:00:40]}  f5 {[%clk 0:05:22]} 35. Ne5 {[%clk 0:00:40]}  fxg4 {[%clk 0:05:16]} 36. hxg4 {[%clk 0:00:58]}  c5 {[%clk 0:03:47]}
37. Kg3 {[%clk 0:00:39]}  Nc4 {[%clk 0:01:09]} 38. Bf5 {[%clk 0:00:46]}  Rce8 {[%clk 0:00:50]} 39. Nxc4 {[%clk 0:00:44]}  dxc4 {[%clk 0:00:52]}
40. dxc5 {[%clk 0:01:01]}  bxc5 {[%clk 0:01:15]} 41. Rd1 {[%clk 0:00:37]}  Bc6 {[%clk 0:20:24]} 42. Rd6 {[%clk 0:14:30]}  Rf6 {[%clk 0:18:32]}
43. Rxc6 {[%clk 0:14:31]}  Rxc6 {[%clk 0:18:58]} 44. Bd7 {[%clk 0:14:57]}  Rec8 {[%clk 0:18:51]} 45. Rxc4 {[%clk 0:15:18]}  Kf6 {[%clk 0:18:46]}
46. Rc3 {[%clk 0:11:03]}  Ke5 {[%clk 0:14:41]} 47. Rb3 {[%clk 0:10:14]}  Kd6 {[%clk 0:14:15]} 48. Bxc8 {[%clk 0:09:47]}  Rxc8 {[%clk 0:14:42]}
49. Rb5 {[%clk 0:07:09]}  Ra8 {[%clk 0:12:03]} 50. f4 {[%clk 0:05:43]}  Kd5 {[%clk 0:11:33]} 51. Kf3 {[%clk 0:05:57]}  gxf4 {[%clk 0:11:47]}
52. exf4 {[%clk 0:06:10]}  Ra6 {[%clk 0:10:57]} 53. f5 {[%clk 0:05:56]}  Kc4 {[%clk 0:07:39]} 54. b3+ {[%clk 0:05:15]}  Kd4 {[%clk 0:07:23]}
55. Kf4 {[%clk 0:05:20]}  Kd5 {[%clk 0:06:51]} 56. g5 {[%clk 0:03:40]}  hxg5+ {[%clk 0:07:16]} 57. Kxg5 {[%clk 0:04:07]}  Ra8 {[%clk 0:07:24]}
58. Kg6 {[%clk 0:01:25]}  Kc6 {[%clk 0:07:37]} 59. f6 {[%clk 0:01:23]}  Rg8 {[%clk 0:08:02]} 60. Kh7 {[%clk 0:01:13]}  Rg3 {[%clk 0:08:10]}
61. f7 {[%clk 0:01:20]}  Rh3+ {[%clk 0:08:31]} 62. Kg7 {[%clk 0:01:40]}  Rg3+ {[%clk 0:08:56]} 63. Kf8 {[%clk 0:01:42]}  Rf3 {[%clk 0:09:03]}
64. Rxa5 {[%clk 0:01:19]}  Rxb3 {[%clk 0:09:11]} 65. Ra8 {[%clk 0:01:17]}  Kd6 {[%clk 0:07:11]} 66. Kg7 {[%clk 0:01:27]}  Kd5 {[%clk 0:06:50]} 1-0

[Event "2026 European Womens Championship"]
[Site "Batumi, GE"]
[Date "2026.05.29"]
[Round "5"]
[White "Bivol, Alina"]
[Black "Sieber, Fiona"]
[Result "1-0"]
[Board "61"]
[TimeControl "5400+30"]
[WhiteFideId "4100123"]
[BlackFideId "12902373"]
[WhiteElo "2361"]
[BlackElo "2224"]
[WhiteTitle "IM"]
[BlackTitle "WGM"]
[WhiteClock "0:11:43"]
[BlackClock "0:04:20"]
[Variant "Standard"]

1. e4 {[%clk 1:30:56]}  c5 {[%clk 1:30:54]} 2. Nf3 {[%clk 1:31:02]}  e6 {[%clk 1:31:18]} 3. c3 {[%clk 1:31:01]}  Nf6 {[%clk 1:31:38]}
4. e5 {[%clk 1:31:22]}  Nd5 {[%clk 1:32:04]} 5. a3 {[%clk 1:31:46]}  d6 {[%clk 1:30:28]} 6. d4 {[%clk 1:32:06]}  cxd4 {[%clk 1:28:54]}
7. c4 {[%clk 1:31:37]}  Ne7 {[%clk 1:19:28]} 8. exd6 {[%clk 1:27:50]}  Qxd6 {[%clk 1:19:28]} 9. Nc3 {[%clk 1:22:04]}  Nf5 {[%clk 1:14:55]}
10. Nb5 {[%clk 1:22:06]}  Qd8 {[%clk 1:14:32]} 11. Bf4 {[%clk 1:13:03]}  Na6 {[%clk 1:14:55]} 12. g4 {[%clk 1:03:32]}  Nd6 {[%clk 1:10:16]}
13. Qxd4 {[%clk 1:00:38]}  Nxb5 {[%clk 1:10:30]} 14. Qxd8+ {[%clk 1:00:55]}  Kxd8 {[%clk 1:10:58]} 15. cxb5 {[%clk 1:01:11]}  Nc5 {[%clk 0:59:39]}
16. Rd1+ {[%clk 0:55:49]}  Ke8 {[%clk 0:58:39]} 17. b4 {[%clk 0:55:18]}  Nd7 {[%clk 0:57:14]} 18. Bg2 {[%clk 0:53:46]}  Be7 {[%clk 0:53:02]}
19. O-O {[%clk 0:51:52]}  Nb6 {[%clk 0:52:06]} 20. Rc1 {[%clk 0:46:14]}  Nd5 {[%clk 0:50:26]} 21. Bg3 {[%clk 0:45:48]}  h5 {[%clk 0:46:01]}
22. gxh5 {[%clk 0:43:18]}  Bf6 {[%clk 0:41:54]} 23. Ne5 {[%clk 0:37:50]}  Rxh5 {[%clk 0:36:47]} 24. Rfe1 {[%clk 0:27:27]}  Bxe5 {[%clk 0:29:40]}
25. Bxe5 {[%clk 0:27:46]}  f6 {[%clk 0:28:02]} 26. Bg3 {[%clk 0:22:33]}  Ke7 {[%clk 0:24:28]} 27. h4 {[%clk 0:19:21]}  Nb6 {[%clk 0:21:10]}
28. Rc7+ {[%clk 0:19:28]}  Bd7 {[%clk 0:21:05]} 29. Rxb7 {[%clk 0:18:32]}  Rc8 {[%clk 0:19:37]} 30. Bc6 {[%clk 0:17:37]}  e5 {[%clk 0:08:49]}
31. Rd1 {[%clk 0:17:19]}  Rd8 {[%clk 0:08:59]} 32. Rxa7 {[%clk 0:17:04]}  Ke8 {[%clk 0:06:35]} 33. a4 {[%clk 0:14:56]}  g5 {[%clk 0:05:46]}
34. a5 {[%clk 0:12:06]}  Bxc6 {[%clk 0:05:51]} 35. Rxd8+ {[%clk 0:12:34]}  Kxd8 {[%clk 0:06:15]} 36. bxc6 {[%clk 0:12:47]}  Nc4 {[%clk 0:04:13]}
37. hxg5 {[%clk 0:12:27]}  Rxg5 {[%clk 0:04:18]} 38. b5 {[%clk 0:11:21]}  e4 {[%clk 0:04:07]} 39. Ra8+ {[%clk 0:11:40]}  Ke7 {[%clk 0:04:20]}
40. c7 {[%clk 0:11:43]} 1-0

[Event "2026 European Womens Championship"]
[Site "Batumi, GE"]
[Date "2026.05.29"]
[Round "5"]
[White "Chernyak, Viktoria"]
[Black "Socko, Monika"]
[Result "1/2-1/2"]
[Board "62"]
[TimeControl "5400+30"]
[WhiteFideId "24165956"]
[BlackFideId "1106619"]
[WhiteElo "2191"]
[BlackElo "2355"]
[WhiteTitle "WGM"]
[BlackTitle "GM"]
[WhiteClock "0:30:37"]
[BlackClock "0:40:24"]
[Variant "Standard"]

1. d4 {[%clk 1:30:59]}  Nf6 {[%clk 1:30:24]} 2. c4 {[%clk 1:31:22]}  e6 {[%clk 1:30:49]} 3. Nc3 {[%clk 1:31:43]}  Bb4 {[%clk 1:31:14]}
4. e3 {[%clk 1:32:09]}  O-O {[%clk 1:30:55]} 5. Bd2 {[%clk 1:32:35]}  c5 {[%clk 1:26:41]} 6. a3 {[%clk 1:27:21]}  Bxc3 {[%clk 1:25:12]}
7. Bxc3 {[%clk 1:27:43]}  Ne4 {[%clk 1:25:31]} 8. Rc1 {[%clk 1:27:33]}  d6 {[%clk 1:22:01]} 9. Nf3 {[%clk 1:22:38]}  Nc6 {[%clk 1:18:29]}
10. Qc2 {[%clk 1:13:18]}  Nxc3 {[%clk 1:17:29]} 11. Qxc3 {[%clk 1:13:40]}  Qe7 {[%clk 1:16:41]} 12. dxc5 {[%clk 1:01:30]}  dxc5 {[%clk 1:17:02]}
13. Bd3 {[%clk 1:01:55]}  b6 {[%clk 1:07:09]} 14. Be4 {[%clk 1:01:41]}  Bb7 {[%clk 1:07:25]} 15. O-O {[%clk 1:00:51]}  Rad8 {[%clk 1:05:02]}
16. Rfd1 {[%clk 0:49:37]}  Rxd1+ {[%clk 0:59:09]} 17. Rxd1 {[%clk 0:49:41]}  Rd8 {[%clk 0:59:28]} 18. Rxd8+ {[%clk 0:40:34]}  Qxd8 {[%clk 0:59:51]}
19. h3 {[%clk 0:31:47]}  Qd1+ {[%clk 0:57:17]} 20. Kh2 {[%clk 0:31:05]}  Qd6+ {[%clk 0:55:18]} 21. Kg1 {[%clk 0:30:24]}  h6 {[%clk 0:55:38]}
22. Qd2 {[%clk 0:22:02]}  Qxd2 {[%clk 0:52:45]} 23. Nxd2 {[%clk 0:22:30]}  Kf8 {[%clk 0:53:08]} 24. f4 {[%clk 0:20:30]}  Ke7 {[%clk 0:49:42]}
25. Kf2 {[%clk 0:20:48]}  Kd6 {[%clk 0:49:26]} 26. g3 {[%clk 0:20:19]}  Bc8 {[%clk 0:39:37]} 27. h4 {[%clk 0:17:06]}  Na5 {[%clk 0:37:49]}
28. Ke2 {[%clk 0:16:17]}  Bd7 {[%clk 0:34:50]} 29. Kd3 {[%clk 0:12:53]}  e5 {[%clk 0:31:19]} 30. Bd5 {[%clk 0:06:07]}  exf4 {[%clk 0:29:54]}
31. exf4 {[%clk 0:06:10]}  Ke7 {[%clk 0:29:18]} 32. Ke3 {[%clk 0:04:17]}  Nc6 {[%clk 0:27:29]} 33. Nf3 {[%clk 0:04:19]}  f6 {[%clk 0:27:06]}
34. Kd3 {[%clk 0:04:06]}  Kd6 {[%clk 0:27:14]} 35. Ke3 {[%clk 0:02:38]}  Ne7 {[%clk 0:24:20]} 36. Be4 {[%clk 0:02:57]}  a5 {[%clk 0:21:43]}
37. Nd2 {[%clk 0:03:01]}  Nc6 {[%clk 0:18:55]} 38. Bxc6 {[%clk 0:01:22]}  Bxc6 {[%clk 0:18:48]} 39. Nb1 {[%clk 0:01:45]}  Be8 {[%clk 0:10:12]}
40. Nc3 {[%clk 0:02:08]}  Bf7 {[%clk 0:10:14]} 41. Kd3 {[%clk 0:01:15]}  Bg6+ {[%clk 0:09:31]} 42. Ke3 {[%clk 0:30:10]}  Bf7 {[%clk 0:39:58]}
43. Kd3 {[%clk 0:30:37]}  Bg6+ {[%clk 0:40:24]} 44. Ke3 {[%clk 0:31:05]} 1/2-1/2

[Event "2026 European Womens Championship"]
[Site "Batumi, GE"]
[Date "2026.05.29"]
[Round "5"]
[White "Rakhmangulova, Anastasiya"]
[Black "Abdinova, Narmin"]
[Result "1-0"]
[Board "63"]
[TimeControl "5400+30"]
[WhiteFideId "14117479"]
[BlackFideId "13425340"]
[WhiteElo "2328"]
[BlackElo "2165"]
[WhiteTitle "WGM"]
[BlackTitle "WIM"]
[WhiteClock "0:40:25"]
[BlackClock "0:04:12"]
[Variant "Standard"]

1. e4 {[%clk 1:30:59]}  c5 {[%clk 1:25:03]} 2. Nf3 {[%clk 1:31:22]}  d6 {[%clk 1:25:14]} 3. d4 {[%clk 1:31:46]}  cxd4 {[%clk 1:25:26]}
4. Nxd4 {[%clk 1:32:11]}  Nf6 {[%clk 1:25:50]} 5. Nc3 {[%clk 1:32:37]}  a6 {[%clk 1:26:13]} 6. Be2 {[%clk 1:33:00]}  e5 {[%clk 1:26:15]}
7. Nb3 {[%clk 1:33:24]}  Be6 {[%clk 1:22:30]} 8. O-O {[%clk 1:33:14]}  Be7 {[%clk 1:20:41]} 9. Be3 {[%clk 1:33:38]}  b5 {[%clk 1:16:30]}
10. a4 {[%clk 1:32:37]}  b4 {[%clk 1:16:28]} 11. Nd5 {[%clk 1:32:53]}  Bxd5 {[%clk 1:15:19]} 12. exd5 {[%clk 1:33:18]}  Nbd7 {[%clk 1:14:45]}
13. a5 {[%clk 1:33:13]}  Qc8 {[%clk 1:03:39]} 14. Ra4 {[%clk 1:29:36]}  Qb7 {[%clk 0:57:41]} 15. Qd2 {[%clk 1:29:34]}  Qxd5 {[%clk 0:49:26]}
16. Qxb4 {[%clk 1:24:24]}  Qe6 {[%clk 0:47:38]} 17. f4 {[%clk 1:16:18]}  d5 {[%clk 0:35:27]} 18. Qe1 {[%clk 1:13:11]}  exf4 {[%clk 0:26:35]}
19. Bxf4 {[%clk 1:12:50]}  Nc5 {[%clk 0:26:37]} 20. Nd4 {[%clk 1:06:17]}  Qe4 {[%clk 0:18:28]} 21. Qa1 {[%clk 1:01:58]}  O-O {[%clk 0:18:53]}
22. b4 {[%clk 0:59:18]}  Ne6 {[%clk 0:16:19]} 23. Nxe6 {[%clk 0:59:39]}  Qxe6 {[%clk 0:15:57]} 24. Bd3 {[%clk 0:58:49]}  Ne4 {[%clk 0:14:19]}
25. Be5 {[%clk 0:55:17]}  Qh6 {[%clk 0:14:37]} 26. Qd4 {[%clk 0:54:19]}  Bg5 {[%clk 0:13:28]} 27. Rf3 {[%clk 0:51:22]}  Rfe8 {[%clk 0:11:11]}
28. Ra1 {[%clk 0:47:24]}  Rxe5 {[%clk 0:03:32]} 29. Qxe5 {[%clk 0:47:48]}  Be3+ {[%clk 0:03:55]} 30. Kh1 {[%clk 0:47:56]}  Nf2+ {[%clk 0:04:18]}
31. Rxf2 {[%clk 0:48:18]}  Bxf2 {[%clk 0:04:46]} 32. Rf1 {[%clk 0:47:38]}  Bh4 {[%clk 0:03:57]} 33. Qxd5 {[%clk 0:45:53]}  Rf8 {[%clk 0:04:23]}
34. Rxf7 {[%clk 0:42:16]}  g6 {[%clk 0:04:11]} 35. Rf4+ {[%clk 0:39:36]}  Kg7 {[%clk 0:04:04]} 36. Qd7+ {[%clk 0:40:01]}  Kh8 {[%clk 0:04:12]}
37. Qd4+ {[%clk 0:40:25]} 1-0

[Event "2026 European Womens Championship"]
[Site "Batumi, GE"]
[Date "2026.05.29"]
[Round "5"]
[White "Iglesias, Yosha"]
[Black "Kobak, Polina"]
[Result "1/2-1/2"]
[Board "64"]
[TimeControl "5400+30"]
[WhiteFideId "637823"]
[BlackFideId "24269727"]
[WhiteElo "2325"]
[BlackElo "1986"]
[WhiteTitle "FM"]
[BlackTitle "WFM"]
[WhiteClock "0:06:47"]
[BlackClock "0:03:38"]
[Variant "Standard"]

1. d4 {[%clk 1:30:55]}  d5 {[%clk 1:26:44]} 2. Bf4 {[%clk 1:31:09]}  c5 {[%clk 1:26:44]} 3. e3 {[%clk 1:31:22]}  cxd4 {[%clk 1:27:02]}
4. exd4 {[%clk 1:31:43]}  Nc6 {[%clk 1:27:26]} 5. c3 {[%clk 1:31:52]}  Bf5 {[%clk 1:27:17]} 6. Nf3 {[%clk 1:28:30]}  e6 {[%clk 1:26:21]}
7. Nbd2 {[%clk 1:28:32]}  f6 {[%clk 1:25:59]} 8. h4 {[%clk 1:25:41]}  Bd6 {[%clk 1:24:40]} 9. Bxd6 {[%clk 1:26:01]}  Qxd6 {[%clk 1:25:06]}
10. h5 {[%clk 1:26:16]}  Nh6 {[%clk 1:20:55]} 11. Nh4 {[%clk 1:24:24]}  Bg4 {[%clk 1:18:06]} 12. Be2 {[%clk 1:24:33]}  Bxe2 {[%clk 1:18:32]}
13. Qxe2 {[%clk 1:24:57]}  O-O {[%clk 1:18:43]} 14. O-O-O {[%clk 1:15:07]}  Rab8 {[%clk 1:07:40]} 15. Kb1 {[%clk 1:11:11]}  b5 {[%clk 1:02:54]}
16. Nb3 {[%clk 0:58:59]}  a5 {[%clk 0:55:35]} 17. g4 {[%clk 0:36:34]}  a4 {[%clk 0:46:54]} 18. Nc1 {[%clk 0:36:13]}  Rfe8 {[%clk 0:41:51]}
19. a3 {[%clk 0:35:15]}  e5 {[%clk 0:32:59]} 20. dxe5 {[%clk 0:35:06]}  Nxe5 {[%clk 0:25:12]} 21. Nf5 {[%clk 0:29:47]}  Nxf5 {[%clk 0:24:07]}
22. gxf5 {[%clk 0:30:14]}  h6 {[%clk 0:21:22]} 23. Rhe1 {[%clk 0:19:01]}  Qd7 {[%clk 0:18:15]} 24. Ka1 {[%clk 0:18:40]}  Nc6 {[%clk 0:14:47]}
25. Qd3 {[%clk 0:17:40]}  Rxe1 {[%clk 0:13:08]} 26. Rxe1 {[%clk 0:18:07]}  Ne5 {[%clk 0:10:34]} 27. Qh3 {[%clk 0:14:12]}  Rd8 {[%clk 0:06:17]}
28. Rd1 {[%clk 0:14:20]}  Qa7 {[%clk 0:05:09]} 29. Qg2 {[%clk 0:08:34]}  Qf7 {[%clk 0:03:52]} 30. Qh3 {[%clk 0:06:15]}  Qa7 {[%clk 0:04:13]}
31. Qg2 {[%clk 0:06:27]}  Qf7 {[%clk 0:04:36]} 32. Qh3 {[%clk 0:06:47]}  Qa7 {[%clk 0:03:38]} 1/2-1/2

[Event "2026 European Womens Championship"]
[Site "Batumi, GE"]
[Date "2026.05.29"]
[Round "5"]
[White "Poliakova, Varvara"]
[Black "Toncheva, Nadya"]
[Result "0-1"]
[Board "65"]
[TimeControl "5400+30"]
[WhiteFideId "13518313"]
[BlackFideId "2924056"]
[WhiteElo "2108"]
[BlackElo "2320"]
[WhiteTitle "WFM"]
[BlackTitle "WGM"]
[WhiteClock "0:28:04"]
[BlackClock "0:25:00"]
[Variant "Standard"]

1. d4 {[%clk 1:30:51]}  d5 {[%clk 1:30:55]} 2. c4 {[%clk 1:30:53]}  c6 {[%clk 1:31:19]} 3. Nf3 {[%clk 1:30:38]}  Nf6 {[%clk 1:31:42]}
4. g3 {[%clk 1:29:23]}  Bg4 {[%clk 1:32:05]} 5. Bg2 {[%clk 1:27:22]}  e6 {[%clk 1:31:42]} 6. Nc3 {[%clk 1:24:56]}  Nbd7 {[%clk 1:31:09]}
7. O-O {[%clk 1:19:42]}  dxc4 {[%clk 1:22:43]} 8. h3 {[%clk 1:15:29]}  Bh5 {[%clk 1:14:43]} 9. a4 {[%clk 1:10:01]}  a5 {[%clk 1:07:23]}
10. b3 {[%clk 1:04:34]}  Bb4 {[%clk 1:04:54]} 11. Bb2 {[%clk 1:00:23]}  cxb3 {[%clk 1:01:09]} 12. Qxb3 {[%clk 0:59:33]}  O-O {[%clk 1:01:07]}
13. g4 {[%clk 0:51:26]}  Bg6 {[%clk 1:01:16]} 14. Ne5 {[%clk 0:50:13]}  Nxe5 {[%clk 0:53:43]} 15. dxe5 {[%clk 0:50:38]}  Nd7 {[%clk 0:53:41]}
16. f4 {[%clk 0:40:00]}  Nc5 {[%clk 0:49:17]} 17. Qd1 {[%clk 0:36:14]}  Qxd1 {[%clk 0:46:55]} 18. Rfxd1 {[%clk 0:33:00]}  Nb3 {[%clk 0:41:32]}
19. Ra2 {[%clk 0:32:36]}  Rad8 {[%clk 0:41:21]} 20. e4 {[%clk 0:30:39]}  Rxd1+ {[%clk 0:40:49]} 21. Nxd1 {[%clk 0:31:08]}  Rd8 {[%clk 0:40:59]}
22. Nc3 {[%clk 0:27:28]}  Rd2 {[%clk 0:40:15]} 23. Bc1 {[%clk 0:26:17]}  Rd3 {[%clk 0:37:21]} 24. Ne2 {[%clk 0:26:29]}  Nxc1 {[%clk 0:37:41]}
25. Nxc1 {[%clk 0:26:57]}  Rd1+ {[%clk 0:38:05]} 26. Kf2 {[%clk 0:27:17]}  Rxc1 {[%clk 0:38:29]} 27. f5 {[%clk 0:27:44]}  Kf8 {[%clk 0:38:45]}
28. h4 {[%clk 0:25:55]}  Rc5 {[%clk 0:36:22]} 29. h5 {[%clk 0:25:18]}  Bxh5 {[%clk 0:36:43]} 30. gxh5 {[%clk 0:25:46]}  Rxe5 {[%clk 0:37:05]}
31. fxe6 {[%clk 0:26:08]}  Rxh5 {[%clk 0:36:10]} 32. exf7 {[%clk 0:26:32]}  Kxf7 {[%clk 0:36:34]} 33. Ra1 {[%clk 0:26:45]}  Ke7 {[%clk 0:35:38]}
34. Bf3 {[%clk 0:27:00]}  Rh2+ {[%clk 0:35:44]} 35. Ke3 {[%clk 0:27:10]}  Rb2 {[%clk 0:34:53]} 36. Bg4 {[%clk 0:27:22]}  Bc5+ {[%clk 0:33:04]}
37. Kf4 {[%clk 0:27:38]}  Rb3 {[%clk 0:28:18]} 38. Rh1 {[%clk 0:27:13]}  Bd6+ {[%clk 0:28:03]} 39. Kf5 {[%clk 0:26:39]}  g6+ {[%clk 0:27:23]}
40. Kg5 {[%clk 0:27:08]}  h5 {[%clk 0:27:44]} 41. Bc8 {[%clk 0:27:01]}  Rg3+ {[%clk 0:26:32]} 42. Kh4 {[%clk 0:27:11]}  b5 {[%clk 0:25:00]}
43. Bb7 {[%clk 0:27:36]}  Rg4+ {[%clk 0:25:10]} 44. Kh3 {[%clk 0:28:04]}  g5 {[%clk 0:25:00]} 0-1